[Event "9th Sharjah Cup Women 2018"]
[Site "Sharjah"]
[Date "2018.12.19"]
[Round "8"]
[White "Ovezdurdiyeva, Jemal"]
[Black "Zozulia, Anna"]
[Result "0-1"]
[ECO "A50"]
[WhiteElo "2114"]
[BlackElo "2270"]
[Annotator "NA"]
[PlyCount "80"]
[EventDate "2018.12.14"]
[EventType "swiss"]
[EventCountry "UAE"]
[SourceTitle "playchess.com"]
[Source "ChessBase"]
[SourceQuality "1"]
[TimeControl "5400+30"]

1. d4 {[%emt 0:00:00]} Nf6 {[%emt 0:00:00]} 2. c4 {[%emt 0:00:00]} Nc6 {[%emt 0:01:36]} 3. Nf3 {[%emt 0:11:01]} d6 {[%emt 0:01:09]} 4. Nc3 {[%emt 0:05:04]} g6 {[%emt 0:09:53] LiveBook: 14 Games} 5. Bg5 {[%emt 0:07:10]} Bg7 {[%emt 0:00:46]} 6. e3 {[%emt 0:00:13]} O-O {[%emt 0:05:09]} 7. Bd3 {[%emt 0:04:47]} h6 {[%emt 0:01:45]} 8. Bh4 {[%emt 0:00:30]} e5 {[%emt 0:01:47]} 9. dxe5 {[%emt 0:11:02]} dxe5 {[%emt 0:08:05]} 10. O-O {[%emt 0:21:23]} Be6 {[%emt 0:14:12]} 11. Qe2 {[%emt 0:03:40]} Qe8 {[%emt 0:11:07]} 12. Bxf6 {[%emt 0:14:00]} Bxf6 {[%emt 0:00:42]} 13. Nd5 {[%emt 0:01:14]} Bd8 {[%emt 0:01:31]} 14. e4 $15 {[%emt 0:01:49]} Bg4 {[%emt 0:10:23]} 15. Qe3 {[%emt 0:01:12]} Kg7 {[%emt 0:08:13]} 16. h3 {[%emt 0:05:07]} Bxf3 {[%emt 0:00:33]} 17. Qxf3 {[%emt 0:00:05]} Nd4 {[%emt 0:00:42]} 18. Qg3 {[%emt 0:00:35]} c6 {[%emt 0:00:41]} 19. Ne3 {[%emt 0:02:17]} Bg5 {[%emt 0:01:32]} 20. Nc2 {[%emt 0:01:35]} Bf4 {[%emt 0:02:29]} 21. Qg4 {[%emt 0:00:17]} h5 {[%emt 0:00:59]} 22. Qd1 {[%emt 0:00:09]} Ne6 {[%emt 0:00:04]} 23. b4 {[%emt 0:02:47]} Qe7 {[%emt 0:09:19]} 24. g3 {[%emt 0:01:41]} Rfd8 {[%emt 0:01:56]} 25. Qe2 {[%emt 0:03:25]} h4 {[%emt 0:01:07]} 26. g4 {[%emt 0:01:11]} Bh2+ {[%emt 0:05:52]} 27. Kxh2 {[%emt 0:00:21]} Nf4 {[%emt 0:00:02]} 28. Qe1 {[%emt 0:00:38]} Rxd3 {[%emt 0:00:38]} 29. Ne3 {[%emt 0:00:29]} Rad8 {[%emt 0:00:03]} 30. Rd1 {[%emt 0:00:38]} Rxd1 {[%emt 0:00:16]} 31. Nxd1 {[%emt 0:00:04]} Nd3 {[%emt 0:00:03]} 32. Qe3 {[%emt 0:00:21]} Qxb4 {[%emt 0:00:25]} 33. Qxa7 {[%emt 0:00:45]} Qxc4 {[%emt 0:00:31]} 34. Qxb7 {[%emt 0:00:05]} Qxe4 {[%emt 0:01:32]} 35. Qe7 {[%emt 0:00:47]} Nf4 {[%emt 0:00:55]} 36. Ne3 {[%emt 0:00:08]} Rd2 {[%emt 0:01:16]} 37. Qc5 {[%emt 0:01:03]} Qf3 {[%emt 0:00:31]} 38. Qxe5+ {[%emt 0:00:10]} Kh7 {[%emt 0:00:02]} 39. Qe7 {[%emt 0:01:09]} Qxh3+ {[%emt 0:00:08]} 40. Kg1 {[%emt 0:00:04]} Ne2# {[%emt 0:00:02]} 0-1

[Event "9th Sharjah Cup Women 2018"]
[Site "Sharjah"]
[Date "2018.12.19"]
[Round "8"]
[White "Asatryan, Sona"]
[Black "Babayan, Armine"]
[Result "1/2-1/2"]
[ECO "B47"]
[WhiteElo "2089"]
[BlackElo "2189"]
[Annotator "NA"]
[PlyCount "105"]
[EventDate "2018.12.14"]
[EventType "swiss"]
[EventCountry "UAE"]
[SourceTitle "playchess.com"]
[Source "ChessBase"]
[SourceQuality "1"]
[TimeControl "5400+30"]

1. e4 {[%emt 0:00:00]} c5 {[%emt 0:00:00]} 2. Nc3 {[%emt 0:00:00]} e6 {[%emt 0:02:10]} 3. Nf3 {[%emt 0:00:40]} Nc6 {[%emt 0:00:49]} 4. d4 {[%emt 0:00:40]} cxd4 {[%emt 0:00:07]} 5. Nxd4 {[%emt 0:00:13]} Qc7 {[%emt 0:08:03]} 6. g3 {[%emt 0:09:25]} a6 {[%emt 0:02:31]} 7. Bg2 {[%emt 0:03:06]} Nf6 {[%emt 0:02:45]} 8. O-O {[%emt 0:03:17]} Be7 {[%emt 0:00:45]} 9. Re1 {[%emt 0:06:36]} d6 {[%emt 0:00:29]} 10. Nxc6 {[%emt 0:02:15]} bxc6 {[%emt 0:00:05]} 11. e5 {[%emt 0:00:20]} dxe5 {[%emt 0:00:15]} 12. Rxe5 {[%emt 0:00:35]} Nd5 {[%emt 0:05:50]} 13. Nxd5 {[%emt 0:18:56]} cxd5 {[%emt 0:02:10]} 14. Qe2 {[%emt 0:07:16]} Bb7 {[%emt 0:02:40]} 15. c4 {[%emt 0:08:24]} dxc4 {[%emt 0:02:24]} 16. Bxb7 {[%emt 0:03:49]} Qxb7 {[%emt 0:00:06]} 17. Qxc4 $11 {[%emt 0:01:17]} O-O {[%emt 0:01:50]} 18. Qe4 {[%emt 0:01:34]} Qxe4 {[%emt 0:22:01]} 19. Rxe4 {[%emt 0:00:04]} Bf6 {[%emt 0:00:28]} 20. Rb1 {[%emt 0:03:40]} Rfb8 {[%emt 0:05:04]} 21. h4 {[%emt 0:04:38]} h6 {[%emt 0:03:01]} 22. b3 {[%emt 0:02:57]} a5 {[%emt 0:01:51]} 23. Bb2 {[%emt 0:01:52]} Be7 {[%emt 0:03:47]} 24. Rd1 {[%emt 0:03:02]} Rb7 {[%emt 0:09:25]} 25. Bc3 {[%emt 0:03:26]} Rc7 {[%emt 0:05:43]} 26. Rd3 {[%emt 0:00:43]} Rc5 {[%emt 0:03:31]} 27. Ra4 {[%emt 0:04:10]} Rb5 {[%emt 0:02:59]} 28. Rd7 {[%emt 0:01:51]} Bf8 {[%emt 0:01:49]} 29. Kg2 {[%emt 0:01:21]} h5 {[%emt 0:01:33]} 30. Rdd4 {[%emt 0:02:42]} Bc5 {[%emt 0:04:12]} 31. Rdc4 {[%emt 0:00:44]} Ra7 {[%emt 0:03:23]} 32. Rxc5 {[%emt 0:01:13]} Rxc5 {[%emt 0:00:01]} 33. Bd4 {[%emt 0:00:06]} Rac7 {[%emt 0:00:04]} 34. Bxc5 {[%emt 0:00:10]} Rxc5 {[%emt 0:00:02]} 35. Rd4 {[%emt 0:03:47]} Rf5 {[%emt 0:03:10]} 36. Rd8+ {[%emt 0:01:06]} Kh7 {[%emt 0:00:04]} 37. a4 {[%emt 0:00:49]} Kg6 {[%emt 0:01:14]} 38. Rb8 {[%emt 0:00:38]} Kf6 {[%emt 0:00:14]} 39. Rb6 {[%emt 0:01:03]} Ke7 {[%emt 0:00:37]} 40. Kf1 {[%emt 0:00:22]} Kd7 {[%emt 0:00:15]} 41. b4 {[%emt 0:00:26]} Kc7 {[%emt 0:00:49]} 42. bxa5 {[%emt 0:00:08]} Rxa5 {[%emt 0:00:04]} 43. Rb4 {[%emt 0:00:02]} Re5 {[%emt 0:00:23]} 44. Rf4 {[%emt 0:01:10]} f6 {[%emt 0:00:30]} 45. Kg2 {[%emt 0:00:24]} Kb6 {[%emt 0:00:33]} 46. g4 {[%emt 0:00:46]} Ka5 {[%emt 0:00:29]} 47. Kg3 {[%emt 0:00:25]} Rd5 {[%emt 0:02:01]} 48. gxh5 {[%emt 0:00:54]} Rxh5 {[%emt 0:00:02]} 49. Re4 {[%emt 0:00:25]} g5 {[%emt 0:00:55]} 50. hxg5 {[%emt 0:00:36]} Rxg5+ {[%emt 0:00:05]} 51. Kf3 {[%emt 0:00:18]} e5 {[%emt 0:00:22]} 52. Ke3 {[%emt 0:00:42]} Rh5 {[%emt 0:01:06]} 53. f4 {[%emt 0:00:35]} 1/2-1/2

[Event "9th Sharjah Cup Women 2018"]
[Site "Sharjah"]
[Date "2018.12.19"]
[Round "8"]
[White "Soyunlu, Narmin"]
[Black "Samaganova, Alexandra"]
[Result "0-1"]
[ECO "E24"]
[WhiteElo "2078"]
[BlackElo "2038"]
[Annotator "NA"]
[PlyCount "98"]
[EventDate "2018.12.14"]
[EventType "swiss"]
[EventCountry "UAE"]
[SourceTitle "playchess.com"]
[Source "ChessBase"]
[SourceQuality "1"]
[TimeControl "5400+30"]

1. d4 {[%emt 0:00:00]} Nf6 {[%emt 0:00:00]} 2. c4 {[%emt 0:00:00]} e6 {[%emt 0:00:00]} 3. Nc3 {[%emt 0:00:00]} Bb4 {[%emt 0:00:14]} 4. a3 {[%emt 0:00:28]} Bxc3+ {[%emt 0:00:32]} 5. bxc3 {[%emt 0:00:04]} b6 {[%emt 0:01:16]} 6. f3 {[%emt 0:01:20]} d5 {[%emt 0:05:00]} 7. cxd5 {[%emt 0:02:57]} exd5 {[%emt 0:00:47]} 8. e3 {[%emt 0:00:23]} O-O {[%emt 0:03:35]} 9. Bd3 {[%emt 0:00:31]} Bb7 {[%emt 0:00:47]} 10. Ne2 {[%emt 0:00:16]} Re8 {[%emt 0:05:04]} 11. O-O {[%emt 0:00:16]} Nbd7 {[%emt 0:00:23]} 12. Ng3 {[%emt 0:01:12]} c5 {[%emt 0:11:02] E48: Nimzo-Indian: Rubinstein: 5 Bd3 d5 including 6 Ne2, but excluding 6 a3} 13. Re1 {[%emt 0:06:45]} (13. Ra2 Nf8 14. Re2 Bc6 15. Bb2 Ne6 16. Ref2 h5 17. Re1 g6 18. Bb1 h4 19. Nf1 {½-½ (32) Macedo,M (2410)-Santiago,Y (2363) Fortaleza 2012}) 13... Qc7 {[%emt 0:09:02]} 14. Bb2 $146 {[%emt 0:05:12]} ({Predecessor:} 14. Ra2 Rad8 15. e4 dxe4 16. fxe4 h6 17. e5 Nd5 18. Nf5 Nf8 19. Rf2 cxd4 20. cxd4 Re6 21. Ref1 Ng6 22. Bxh6 gxh6 23. Nxh6+ Kg7 24. Rxf7+ Kxh6 25. Rxc7 Nxc7 26. Qc1+ {1-0 (26) Wilson,J (2245)-Pickersgill,A (2105) Hastings 1995}) 14... h5 {[%emt 0:09:16]} 15. e4 {[%emt 0:23:10]} c4 {[%emt 0:30:28]} 16. Bc2 {[%emt 0:04:46]} h4 {[%emt 0:04:06]} 17. Nf5 {[%emt 0:00:45]} dxe4 {[%emt 0:00:56]} 18. fxe4 {[%emt 0:00:14]} g6 {[%emt 0:02:48]} 19. e5 $11 {[%emt 0:01:55]} gxf5 {[%emt 0:02:52]} 20. exf6 {[%emt 0:04:39]} Nxf6 {[%emt 0:00:48]} 21. Bxf5 {[%emt 0:04:50]} Qf4 {[%emt 0:00:56]} 22. Qc2 {[%emt 0:04:57]} Ng4 {[%emt 0:01:48]} 23. Bxg4 {[%emt 0:00:32]} Qxg4 {[%emt 0:00:02]} 24. h3 {[%emt 0:02:12]} Qg5 {[%emt 0:02:48]} 25. Rad1 {[%emt 0:03:41]} Bf3 {[%emt 0:04:10]} 26. Ra1 {[%emt 0:05:28]} Bh5 {[%emt 0:01:20]} 27. Qf2 {[%emt 0:01:42]} Bg6 {[%emt 0:00:56]} 28. Bc1 {[%emt 0:01:39]} Qh5 {[%emt 0:01:07]} 29. Bf4 {[%emt 0:00:57]} Be4 {[%emt 0:01:17]} 30. Be5 {[%emt 0:01:22]} Qg6 {[%emt 0:00:53]} 31. Re2 {[%emt 0:02:40]} f5 {[%emt 0:00:43]} 32. Qxh4 {[%emt 0:00:35]} Rad8 {[%emt 0:00:30]} 33. Rxe4 {[%emt 0:04:32]} fxe4 {[%emt 0:00:28]} 34. Qh8+ {[%emt 0:01:04]} Kf7 {[%emt 0:00:01]} 35. Rf1+ {[%emt 0:00:07]} Ke7 {[%emt 0:00:36]} 36. Qh4+ {[%emt 0:00:13]} Kd7 {[%emt 0:00:18]} 37. Rf6 {[%emt 0:00:33]} Qg8 {[%emt 0:00:38]} 38. Qxe4 {[%emt 0:01:04]} Re6 {[%emt 0:01:00]} 39. Qb7+ {[%emt 0:02:58]} Ke8 {[%emt 0:00:10]} 40. Qxa7 {[%emt 0:02:30]} Rxf6 {[%emt 0:00:51]} 41. Bxf6 {[%emt 0:00:24]} Rd7 {[%emt 0:00:29]} 42. Qxb6 {[%emt 0:01:56]} Qd5 {[%emt 0:00:28]} 43. Qb8+ {[%emt 0:00:51]} Kf7 {[%emt 0:00:04]} 44. Qf4 {[%emt 0:01:05]} Rb7 {[%emt 0:00:38]} 45. Qf2 {[%emt 0:01:20]} Rb1+ {[%emt 0:00:41]} 46. Kh2 {[%emt 0:00:02]} Qb7 {[%emt 0:00:37]} 47. Bg5+ {[%emt 0:01:17]} Ke8 {[%emt 0:00:32]} 48. Qe2+ {[%emt 0:00:18]} Kf8 {[%emt 0:00:31]} 49. Qxc4 {[%emt 0:00:34]} Qb8+ {[%emt 0:00:18]} 0-1

[Event "9th Sharjah Cup Women 2018"]
[Site "Sharjah"]
[Date "2018.12.19"]
[Round "8"]
[White "Kejzar, Petra"]
[Black "Patil, Mitali"]
[Result "1-0"]
[ECO "C63"]
[WhiteElo "2062"]
[BlackElo "2081"]
[Annotator "NA"]
[PlyCount "63"]
[EventDate "2018.12.14"]
[EventType "swiss"]
[EventCountry "UAE"]
[SourceTitle "playchess.com"]
[Source "ChessBase"]
[SourceQuality "1"]
[TimeControl "5400+30"]

1. e4 {[%emt 0:00:00]} e5 {[%emt 0:00:00]} 2. Nf3 {[%emt 0:00:00]} Nc6 {[%emt 0:00:00]} 3. Bb5 {[%emt 0:00:00]} f5 {[%emt 0:00:00]} 4. d3 {[%emt 0:05:02]} d6 {[%emt 0:01:30]} 5. Nbd2 {[%emt 0:10:39]} Nf6 {[%emt 0:03:55]} 6. exf5 {[%emt 0:05:20]} Bxf5 {[%emt 0:00:05]} 7. Nf1 {[%emt 0:00:29]} Be7 {[%emt 0:03:37]} 8. Ng3 {[%emt 0:00:36]} Bg6 {[%emt 0:01:08]} 9. h4 {[%emt 0:05:08]} h5 {[%emt 0:10:53]} 10. Bg5 {[%emt 0:19:48]} Qd7 {[%emt 0:09:43]} 11. Qd2 {[%emt 0:09:50]} O-O-O {[%emt 0:01:30]} 12. O-O-O {[%emt 0:00:53]} Bf7 {[%emt 0:09:43]} 13. Rhe1 {[%emt 0:07:11]} Bd5 {[%emt 0:05:00]} 14. Ne4 {[%emt 0:03:45]} a6 {[%emt 0:05:32]} 15. Ba4 {[%emt 0:01:34]} Qg4 {[%emt 0:01:46]} 16. Nc3 $15 {[%emt 0:05:08]} Nb4 {[%emt 0:09:04]} 17. a3 {[%emt 0:02:16]} Qxg2 {[%emt 0:02:34]} 18. Nxe5 {[%emt 0:03:34]} dxe5 {[%emt 0:06:02]} 19. axb4 {[%emt 0:00:14]} Bf3 {[%emt 0:03:04]} 20. Rg1 {[%emt 0:01:09]} Qh2 {[%emt 0:00:17]} 21. Rde1 {[%emt 0:02:09]} Bxb4 {[%emt 0:00:08]} 22. Qe3 {[%emt 0:00:25]} Bd5 {[%emt 0:13:37]} 23. Qa7 {[%emt 0:01:36]} c6 {[%emt 0:03:15]} 24. f4 {[%emt 0:04:56]} Rhe8 {[%emt 0:05:37]} 25. Re2 {[%emt 0:03:32]} Qh3 {[%emt 0:00:36]} 26. Bxf6 {[%emt 0:00:53]} gxf6 {[%emt 0:00:42]} 27. Nxd5 {[%emt 0:00:35]} Qf3 {[%emt 0:03:11]} 28. Qa8+ {[%emt 0:00:15]} Kd7 {[%emt 0:00:01]} 29. Qxb7+ {[%emt 0:00:11]} Ke6 {[%emt 0:00:19]} 30. Qxc6+ {[%emt 0:00:13]} Bd6 {[%emt 0:01:06]} 31. Nc7+ {[%emt 0:00:11]} Kf7 {[%emt 0:00:09]} 32. Qxf3 {[%emt 0:00:07]} 1-0

[Event "9th Sharjah Cup Women 2018"]
[Site "Sharjah"]
[Date "2018.12.19"]
[Round "8"]
[White "Boshra, Alshaeby"]
[Black "Rouda Essa, Alserkal"]
[Result "1-0"]
[ECO "E65"]
[WhiteElo "2019"]
[BlackElo "1525"]
[Annotator "NA"]
[PlyCount "47"]
[EventDate "2018.12.14"]
[EventType "swiss"]
[EventCountry "UAE"]
[SourceTitle "playchess.com"]
[Source "ChessBase"]
[SourceQuality "1"]
[TimeControl "5400+30"]

1. d4 {[%emt 0:00:00]} Nf6 {[%emt 0:00:00]} 2. c4 {[%emt 0:00:00]} g6 {[%emt 0:00:00]} 3. Nc3 {[%emt 0:00:01]} Bg7 {[%emt 0:00:24]} 4. g3 O-O {[%emt 0:00:21]} 5. Bg2 {[%emt 0:00:19]} d6 {[%emt 0:05:37]} 6. Nf3 {[%emt 0:00:07]} c5 {[%emt 0:00:53]} 7. O-O {[%emt 0:01:19]} Nbd7 {[%emt 0:16:57]} 8. d5 {[%emt 0:03:34]} Rb8 {[%emt 0:10:26]} 9. h3 {[%emt 0:04:02]} a6 {[%emt 0:15:40]} 10. a4 {[%emt 0:00:32]} Qc7 {[%emt 0:03:21]} 11. e4 {[%emt 0:02:09]} Rd8 {[%emt 0:11:11]} 12. Bg5 {[%emt 0:03:35]} h6 {[%emt 0:05:58]} 13. Be3 {[%emt 0:00:14]} Kh7 {[%emt 0:00:27]} 14. Qc2 $16 {[%emt 0:01:14]} Rf8 {[%emt 0:01:16]} 15. Nd2 {[%emt 0:04:08]} Qd8 {[%emt 0:03:18]} 16. Kh2 {[%emt 0:02:15]} Ne8 {[%emt 0:00:26]} 17. f4 {[%emt 0:00:37]} Nc7 {[%emt 0:00:31]} 18. e5 {[%emt 0:06:28]} dxe5 {[%emt 0:01:43]} 19. f5 {[%emt 0:00:05]} Rg8 {[%emt 0:00:53]} 20. fxg6+ {[%emt 0:02:01]} fxg6 {[%emt 0:00:10]} 21. Qxg6+ {[%emt 0:00:50]} Kh8 {[%emt 0:02:31]} 22. Be4 {[%emt 0:00:14]} Nf6 {[%emt 0:00:33]} 23. Rxf6 {[%emt 0:00:08]} Bxf6 {[%emt 0:00:22]} 24. Qh7# {[%emt 0:00:06]} 1-0

[Event "9th Sharjah Cup Women 2018"]
[Site "Sharjah"]
[Date "2018.12.19"]
[Round "8"]
[White "Bauyrzhan, Arnash"]
[Black "Drljevic, Ljilja"]
[Result "1-0"]
[ECO "B06"]
[WhiteElo "1978"]
[BlackElo "2208"]
[Annotator "NA"]
[PlyCount "149"]
[EventDate "2018.12.14"]
[EventType "swiss"]
[EventCountry "UAE"]
[SourceTitle "playchess.com"]
[Source "ChessBase"]
[SourceQuality "1"]
[TimeControl "5400+30"]

1. e4 {[%emt 0:00:00]} g6 {[%emt 0:00:00]} 2. d4 {[%emt 0:00:00]} Bg7 {[%emt 0:00:00]} 3. Nf3 {[%emt 0:00:28]} d6 {[%emt 0:00:00]} 4. Bd3 {[%emt 0:00:27]} c6 {[%emt 0:00:37]} 5. O-O {[%emt 0:01:27]} e5 {[%emt 0:00:29] B06: Modern Defence} (5... Nf6 6. c3 O-O 7. Re1 Qc7 8. e5 Nd5 9. Nbd2 Nd7 10. exd6 exd6 11. Ne4 h6 12. Bd2 Kh7 13. Qc2 a5 14. Ng3 N7f6 15. h4 {0-1 (97) Froewis,G (2451)-Gazik,V (2497) Vienna 2018}) 6. c3 {[%emt 0:04:02]} Ne7 {[%emt 0:01:44]} 7. Nbd2 {[%emt 0:05:51]} O-O {[%emt 0:01:03]} 8. a4 {[%emt 0:02:50]} h6 {[%emt 0:01:55]} 9. dxe5 {[%emt 0:02:15]} dxe5 {[%emt 0:00:03]} 10. Nc4 {[%emt 0:00:24]} Qc7 {[%emt 0:00:59]} 11. a5 {[%emt 0:02:04]} Be6 {[%emt 0:02:51] [#]} (11... Na6 $16 {is a better defense.}) 12. Nb6 $1 $146 {[%emt 0:03:04]} Nd7 {[%emt 0:02:23]} 13. Nxa8 {[%emt 0:00:11]} Rxa8 {[%emt 0:00:02]} 14. Be3 {[%emt 0:00:55]} f5 {[%emt 0:00:53]} 15. Qe2 {[%emt 0:03:56]} f4 {[%emt 0:11:05]} (15... fxe4 {was worth a try.} 16. Bxe4 Nf6) 16. Bc4 {[%emt 0:00:36]} Bxc4 {[%emt 0:04:41]} 17. Qxc4+ {[%emt 0:00:07]} Kh7 {[%emt 0:01:57]} 18. Bc5 {[%emt 0:01:17]} Nxc5 {[%emt 0:12:45]} 19. Qxc5 {[%emt 0:00:07]} g5 {[%emt 0:07:06]} 20. h3 {[%emt 0:02:04]} Ng6 {[%emt 0:02:53]} 21. Rfd1 {[%emt 0:01:10]} Bf8 {[%emt 0:02:45]} 22. Qc4 {[%emt 0:00:12]} Re8 {[%emt 0:04:25]} 23. Rd2 {[%emt 0:02:27]} Bg7 {[%emt 0:06:01]} 24. b4 {[%emt 0:00:36]} a6 {[%emt 0:00:29]} 25. Rad1 {[%emt 0:00:15]} Nf8 {[%emt 0:00:27]} 26. Qc5 {[%emt 0:03:22]} Bf6 {[%emt 0:06:46]} 27. Rd6 {[%emt 0:08:56]} Qg7 $18 {[%emt 0:03:02]} 28. R6d2 {[%emt 0:11:52]} h5 {[%emt 0:01:06]} 29. Nh2 {[%emt 0:03:57]} Re7 {[%emt 0:05:56]} 30. Qc4 {[%emt 0:02:57]} Ng6 {[%emt 0:02:39]} 31. Qe2 {[%emt 0:00:34]} Kh6 {[%emt 0:10:30]} 32. Rd6 {[%emt 0:01:46]} Rf7 {[%emt 0:00:41]} 33. R1d3 {[%emt 0:04:07]} Qf8 {[%emt 0:02:39]} 34. Rd7 {[%emt 0:02:30]} Qe8 {[%emt 0:03:00]} 35. Qd1 {[%emt 0:00:51]} Nf8 {[%emt 0:01:52]} 36. Rxf7 {[%emt 0:00:27]} Qxf7 {[%emt 0:00:01]} 37. Rd6 {[%emt 0:01:05]} Kg6 {[%emt 0:00:37]} 38. Qc2 {[%emt 0:10:53]} Qc4 {[%emt 0:01:23]} 39. Nf3 {[%emt 0:00:21]} Kg7 {[%emt 0:00:25]} 40. Nd2 {[%emt 0:02:29]} Qf7 {[%emt 0:00:22]} 41. Qb3 {[%emt 0:01:37]} Qe7 {[%emt 0:00:07]} 42. Rd3 {[%emt 0:01:00]} g4 {[%emt 0:01:01]} 43. hxg4 {[%emt 0:01:16]} hxg4 {[%emt 0:00:02]} 44. Qd1 {[%emt 0:00:36]} Qe6 {[%emt 0:00:31]} 45. Nf1 {[%emt 0:00:38]} Bh4 {[%emt 0:01:11]} 46. Rd6 {[%emt 0:00:37]} Qc8 {[%emt 0:00:10]} 47. Nh2 {[%emt 0:02:20]} f3 {[%emt 0:01:02]} 48. gxf3 {[%emt 0:00:52]} g3 {[%emt 0:00:02]} 49. fxg3 {[%emt 0:00:32]} Bxg3 {[%emt 0:00:07]} 50. Ng4 {[%emt 0:00:57]} c5 {[%emt 0:01:35]} 51. Qd2 {[%emt 0:01:51]} Bf4 {[%emt 0:00:30]} 52. Qg2 {[%emt 0:00:08]} Kf7 {[%emt 0:00:26]} 53. Qa2+ {[%emt 0:05:20]} Ke7 {[%emt 0:00:41]} 54. Rf6 {[%emt 0:04:00]} Ne6 {[%emt 0:00:13]} 55. Qc4 {[%emt 0:01:00]} Qc6 {[%emt 0:00:45]} 56. Qd5 {[%emt 0:00:26]} cxb4 {[%emt 0:00:30]} 57. Qxc6 {[%emt 0:00:24]} bxc6 {[%emt 0:00:02]} 58. cxb4 {[%emt 0:00:05]} Bd2 {[%emt 0:00:55]} 59. Rf5 {[%emt 0:00:19]} Bxb4 {[%emt 0:00:35]} 60. Nxe5 {[%emt 0:00:42]} Nd4 {[%emt 0:00:21]} 61. Rh5 {[%emt 0:00:32]} Ke6 {[%emt 0:00:38]} 62. Kf2 {[%emt 0:01:25]} Bd2 {[%emt 0:00:30]} 63. Nd3 {[%emt 0:00:30]} Nc2 {[%emt 0:00:31]} 64. f4 {[%emt 0:00:31]} Kd6 {[%emt 0:00:31]} 65. Ke2 {[%emt 0:00:46]} Bc3 {[%emt 0:00:24]} 66. Rc5 {[%emt 0:00:39]} Nd4+ {[%emt 0:00:13]} 67. Ke3 {[%emt 0:00:12]} Ba1 {[%emt 0:00:14]} 68. e5+ {[%emt 0:00:12]} Kc7 {[%emt 0:00:58]} 69. Nb4 {[%emt 0:00:35]} Kb7 {[%emt 0:00:38]} 70. Ke4 {[%emt 0:00:23]} Bb2 {[%emt 0:00:31]} 71. f5 {[%emt 0:00:26]} Nb5 {[%emt 0:00:32]} 72. Rxc6 {[%emt 0:00:29]} Bc3 {[%emt 0:00:29]} 73. Rxa6 {[%emt 0:00:25]} Nd4 {[%emt 0:00:29]} 74. Rb6+ {[%emt 0:00:07]} Ka7 {[%emt 0:00:31]} 75. Nc6+ {[%emt 0:00:09]} 1-0

[Event "9th Sharjah Cup Women 2018"]
[Site "Sharjah"]
[Date "2018.12.19"]
[Round "8"]
[White "Greibrokk, Ingrid"]
[Black "Mohammed, Ghalia"]
[Result "1-0"]
[ECO "C78"]
[WhiteElo "1857"]
[BlackElo "1201"]
[Annotator "NA"]
[PlyCount "45"]
[EventDate "2018.12.14"]
[EventType "swiss"]
[EventCountry "UAE"]
[SourceTitle "playchess.com"]
[Source "ChessBase"]
[SourceQuality "1"]
[TimeControl "5400+30"]

1. e4 {[%emt 0:00:00]} e5 {[%emt 0:00:00]} 2. Nf3 {[%emt 0:00:00]} Nc6 {[%emt 0:00:00]} 3. Bb5 {[%emt 0:00:00]} a6 {[%emt 0:00:00]} 4. Ba4 {[%emt 0:00:00]} Nf6 {[%emt 0:00:00]} 5. O-O {[%emt 0:00:00]} b5 {[%emt 0:00:07]} 6. Bb3 {[%emt 0:00:00]} Bc5 {[%emt 0:00:13]} 7. Re1 {[%emt 0:00:11]} O-O {[%emt 0:00:13]} 8. c3 {[%emt 0:00:08]} Ng4 {[%emt 0:01:26]} 9. Re2 {[%emt 0:00:56]} d6 {[%emt 0:02:20]} 10. h3 {[%emt 0:00:19]} Nf6 {[%emt 0:00:09]} 11. d4 {[%emt 0:00:34]} exd4 {[%emt 0:03:32]} 12. cxd4 {[%emt 0:00:09]} Bb6 {[%emt 0:00:05]} 13. Bg5 {[%emt 0:00:10]} Re8 {[%emt 0:01:40]} 14. Nc3 {[%emt 0:00:26]} Qd7 {[%emt 0:01:58]} 15. Bxf6 {[%emt 0:01:39]} gxf6 {[%emt 0:00:30]} 16. Nd5 {[%emt 0:00:07]} Qd8 {[%emt 0:00:55]} 17. Nxb6 {[%emt 0:00:15]} cxb6 {[%emt 0:00:12]} 18. Bd5 {[%emt 0:00:06]} Bb7 {[%emt 0:00:30]} 19. Nh4 {[%emt 0:01:13]} Rc8 {[%emt 0:02:45]} 20. Nf5 {[%emt 0:01:13]} Rf8 {[%emt 0:00:28]} 21. Re3 {[%emt 0:01:01]} Rc7 {[%emt 0:01:10]} 22. Qg4+ {[%emt 0:00:13]} Kh8 {[%emt 0:00:16]} 23. Qg7# 1-0

[Event "9th Sharjah Cup Women 2018"]
[Site "Sharjah"]
[Date "2018.12.19"]
[Round "8"]
[White "Khalil, Reem"]
[Black "Mezioud, Amina"]
[Result "0-1"]
[ECO "C25"]
[WhiteElo "1297"]
[BlackElo "2065"]
[Annotator "NA"]
[PlyCount "86"]
[EventDate "2018.12.14"]
[EventType "swiss"]
[EventCountry "UAE"]
[SourceTitle "playchess.com"]
[Source "ChessBase"]
[SourceQuality "1"]
[TimeControl "5400+30"]

1. e4 {[%emt 0:02:08]} e5 {[%emt 0:00:15]} 2. Nc3 {[%emt 0:03:08]} Bc5 {[%emt 0:00:30]} 3. g3 {[%emt 0:06:56]} Nf6 {[%emt 0:00:13]} 4. Bg2 {[%emt 0:00:34]} d6 {[%emt 0:00:13]} 5. Nge2 {[%emt 0:00:34]} Nc6 {[%emt 0:03:10]} 6. Na4 {[%emt 0:00:48]} Bb6 {[%emt 0:05:57]} 7. Nxb6 {[%emt 0:02:00]} axb6 {[%emt 0:00:02]} 8. c3 {[%emt 0:00:49]} O-O {[%emt 0:00:07]} 9. O-O {[%emt 0:00:05]} Re8 {[%emt 0:01:21]} 10. d3 {[%emt 0:01:55]} h6 {[%emt 0:02:32]} 11. h3 {[%emt 0:00:36]} Be6 {[%emt 0:00:52]} 12. a4 {[%emt 0:01:53]} Na5 {[%emt 0:02:54]} 13. Be3 {[%emt 0:00:30]} Qd7 {[%emt 0:11:30]} 14. Kh2 {[%emt 0:03:24]} Bb3 {[%emt 0:05:28]} 15. Qe1 {[%emt 0:10:29]} Bxa4 {[%emt 0:01:12]} 16. f4 {[%emt 0:02:31]} Nb3 {[%emt 0:05:42]} 17. Ra3 $11 {[%emt 0:17:22]} Nc5 {[%emt 0:01:20]} 18. Qd2 {[%emt 0:00:48]} Bc6 {[%emt 0:04:36]} 19. Rxa8 {[%emt 0:01:23]} Rxa8 {[%emt 0:00:02]} 20. fxe5 {[%emt 0:01:12]} dxe5 {[%emt 0:00:16]} 21. Bxh6 {[%emt 0:04:30]} Nh7 {[%emt 0:15:31]} 22. Be3 {[%emt 0:12:16]} Qxd3 {[%emt 0:00:37]} 23. Rd1 {[%emt 0:03:18]} Qxd2 {[%emt 0:00:51]} 24. Rxd2 {[%emt 0:00:41]} Nb3 {[%emt 0:01:36]} 25. Rd1 {[%emt 0:01:54]} Nf6 {[%emt 0:00:33]} 26. Bg5 {[%emt 0:01:12]} Nd7 {[%emt 0:06:49]} 27. g4 {[%emt 0:02:52]} Ra2 {[%emt 0:01:49]} 28. Bd8 {[%emt 0:03:41]} Rxb2 {[%emt 0:02:36]} 29. Ng3 {[%emt 0:00:58]} Nbc5 {[%emt 0:01:34]} 30. Kg1 {[%emt 0:03:15]} Ne6 {[%emt 0:01:19]} 31. Nf5 {[%emt 0:02:08]} Kh7 {[%emt 0:04:42]} 32. Bh4 {[%emt 0:03:16]} Nf4 {[%emt 0:01:05]} 33. Bf1 {[%emt 0:02:46]} Nc5 {[%emt 0:00:12]} 34. Ng3 {[%emt 0:00:52]} f6 {[%emt 0:03:25]} 35. Nf5 {[%emt 0:03:20]} Nxe4 {[%emt 0:01:49]} 36. c4 {[%emt 0:01:14]} Nd2 {[%emt 0:00:50]} 37. Bg3 {[%emt 0:00:38]} Nf3+ {[%emt 0:00:55]} 38. Kh1 {[%emt 0:00:11]} Ng5+ {[%emt 0:02:12]} 39. Kg1 {[%emt 0:00:04]} Ngxh3+ {[%emt 0:00:56]} 40. Bxh3 {[%emt 0:00:02]} Nxh3+ {[%emt 0:00:07]} 41. Kf1 {[%emt 0:00:09]} Bg2+ {[%emt 0:01:18]} 42. Ke1 {[%emt 0:00:04]} Bf3 {[%emt 0:00:24]} 43. Rd7 {[%emt 0:00:29]} Rb1+ {[%emt 0:00:33]} 0-1